bitfinex-derivatives/quotes_SOLF0:USTF0_20220108
["timestamp","ask_amount","ask_price","bid_price","bid_amount"]
[1641655979885,27.66479,142.86,142.74,27.66479]
[1641655980087,4.0,142.84,142.75,1.75]
[1641655980286,4.0,142.83,142.75,1.75]
[1641655980486,4.0,142.82,142.75,1.75]
[1641655980687,4.0,142.82,142.74,27.66479]
[1641655981088,4.0,142.84,142.74,27.66479]
[1641655981289,4.0,142.84,142.75,1.75]
[1641655981488,5.414,142.85,142.75,1.75]
[1641655981687,4.0,142.83,142.75,1.75]
[1641655982690,4.0,142.82,142.75,1.75]
[1641655982892,5.414,142.85,142.75,1.75]
[1641655983091,33.26501138,142.86,142.75,1.75]
[1641655983290,4.0,142.83,142.75,1.75]
[1641655983690,4.0,142.83,142.78,27.66479]
[1641655984292,38.86511032,142.86,142.78,27.66479]
[1641655984493,4.0,142.82,142.78,27.66479]
[1641655984692,9.443,142.82,142.78,27.66479]
[1641655985792,5.443,142.82,142.76,68.3141]
[1641655986392,4.0,142.8,142.76,68.3141]
[1641655986692,4.0,142.77,142.75,1.75]
[1641655986995,4.0,142.76,142.7,168.62379502]
[1641655987194,7.501,142.77,142.7,168.62379502]
[1641655987195,13.10470231,142.77,142.7,102.23169502]
[1641655987797,27.66479,142.76,142.7,102.23169502]
[1641655988198,4.0,142.74,142.7,62.989]
[1641655988398,7.91,142.74,142.67,68.4735]
[1641655988599,4.0,142.72,142.67,66.7235]
[1641655988798,4.0,142.72,142.66,27.66479]
[1641655989197,4.0,142.71,142.66,27.66479]
[1641655989400,9.997,142.71,142.66,27.66479]
[1641655989698,4.0,142.69,142.65,65.6643]
[1641655989900,4.0,142.69,142.64,39.24269502]
[1641655990199,4.0,142.68,142.64,39.24269502]
[1641655990400,10.001,142.68,142.64,14.79967801]
[1641655990599,6.001,142.68,142.64,14.79967801]
[1641655990798,4.0,142.65,142.64,14.79967801]
[1641655990999,10.671,142.65,142.64,14.79967801]
[1641655991799,10.671,142.65,142.61,14.79967801]
[1641655992402,6.671,142.65,142.61,14.79967801]
[1641655992600,4.0,142.64,142.61,14.79967801]
[1641655993101,4.0,142.62,142.61,14.79967801]
[1641655993303,10.455,142.62,142.61,14.79967801]
[1641655993502,10.455,142.62,142.58,63.3091]
[1641655993703,4.0,142.6,142.56,14.79967801]
[1641655993903,34.11979,142.62,142.56,14.79967801]
[1641655994103,4.0,142.6,142.56,14.79967801]
[1641655994305,4.0,142.58,142.56,14.79967801]
[1641655994503,11.537,142.58,142.56,14.79967801]
[1641655994704,7.537,142.58,142.56,14.79967801]
[1641655994905,4.0,142.57,142.53,14.77218712]
[1641655995106,7.537,142.58,142.53,14.77218712]
[1641655995308,4.0,142.56,142.53,14.77218712]
[1641655995705,14.55503635,142.58,142.53,14.77218712]
[1641655995906,4.0,142.54,142.53,14.77218712]
[1641655996108,10.204,142.54,142.53,14.77218712]
[1641655996308,10.204,142.54,142.5,39.24269502]
[1641655996509,4.0,142.51,142.43,150.95620504]
[1641655996709,5.88,142.51,142.43,150.95620504]
[1641655996908,4.0,142.48,142.43,150.95620504]
[1641655997108,8.221,142.48,142.43,14.72380504]
[1641655997308,13.83582511,142.48,142.43,14.72380504]
[1641655997511,13.83582511,142.48,142.38,1.754]
[1641655997512,11.02493853,142.44,142.38,1.754]
[1641655997710,8.0,142.39,142.31,71.48953549]
[1641655997911,8.0,142.39,142.28,1.755]
[1641655997912,4.0,142.32,142.29,39.28595401]
[1641655998111,4.0,142.31,142.29,39.28595401]
[1641655998310,4.0,142.3,142.29,39.28595401]
[1641655998612,5.557,142.32,142.29,39.28595401]
[1641655999112,5.557,142.32,142.27,27.66479]
[1641655999316,21.4427858,142.36,142.28,1.756]
[1641655999512,33.54640926,142.36,142.27,27.66479]
[1641655999711,24.68638708,142.39,142.28,1.756]
[1641655999913,24.68638708,142.39,142.38,55.32958]
[1641656000112,4.0,142.44,142.38,55.32958]
[1641656000314,127.40766208,142.45,142.38,33.03479]
[1641656000513,4.0,142.44,142.38,33.03479]
[1641656000911,27.66479,142.48,142.38,33.03479]
[1641656001311,4.0,142.39,142.38,27.66479]
[1641656001513,11.06,142.39,142.27,1.754]
[1641656001714,7.06,142.39,142.27,1.754]
[1641656001912,4.0,142.38,142.29,27.66479]
[1641656002112,7.06,142.39,142.29,34.68923507]
[1641656002313,7.06,142.39,142.3,1.756]
[1641656002513,11.06,142.39,142.3,1.756]
[1641656002912,4.0,142.37,142.3,1.756]
[1641656003313,11.06,142.39,142.3,1.756]
[1641656003514,11.06,142.39,142.3,8.77995168]
[1641656003813,7.06,142.39,142.36,27.66479]
[1641656004215,27.66479,142.44,142.36,27.66479]
[1641656004414,4.0,142.41,142.36,27.66479]
[1641656004614,7.991,142.43,142.36,2.73172365]
[1641656004817,4.0,142.37,142.3,1.756]
[1641656005014,5.892,142.37,142.3,1.756]
[1641656005614,5.892,142.37,142.27,7.02567886]
[1641656005914,5.892,142.37,142.31,27.66479]
[1641656006615,4.0,142.37,142.31,19.68547707]
[1641656007015,27.66479,142.41,142.31,19.68547707]
[1641656007215,4.0,142.36,142.28,29.42079]
[1641656007416,7.428,142.36,142.28,29.42079]
[1641656008417,4.0,142.37,142.28,29.42079]
[1641656008618,31.66479,142.41,142.28,29.42079]
[1641656009818,4.0,142.35,142.28,29.42079]
[1641656010021,9.793,142.35,142.28,27.66479]
[1641656011419,5.793,142.35,142.28,27.66479]
[1641656011720,5.61923495,142.37,142.28,27.66479]
[1641656011919,4.0,142.34,142.28,27.66479]
[1641656012119,11.02715997,142.4,142.28,27.66479]
[1641656012323,4.0,142.35,142.28,29.42079]
[1641656013120,4.0,142.35,142.28,27.66479]
[1641656013721,4.0,142.35,142.29,1.756]
[1641656013923,4.0,142.36,142.28,29.42079]
[1641656014123,4.0,142.34,142.28,27.66479]
[1641656014321,4.0,142.33,142.28,27.66479]
[1641656014524,4.0,142.32,142.28,27.66479]
[1641656014722,4.0,142.33,142.28,27.66479]
[1641656014923,4.0,142.34,142.28,27.66479]
[1641656015325,4.0,142.33,142.28,27.66479]
[1641656015526,4.0,142.3,142.28,27.66479]
[1641656015826,7.922,142.3,142.28,27.66479]
[1641656017128,33.28523919,142.34,142.28,27.66479]
[1641656017526,4.0,142.29,142.28,27.66479]
[1641656018125,4.0,142.29,142.27,6.654]
[1641656018327,4.0,142.35,142.27,6.654]
[1641656018527,5.61932496,142.37,142.28,1.756]
[1641656018731,5.61735617,142.42,142.28,1.756]
[1641656019030,34.36434723,142.49,142.37,4.0]
[1641656019230,4.89933852,142.38,142.37,7.211]
[1641656019528,34.36434723,142.45,142.37,11.211]
[1641656020130,34.36434723,142.45,142.42,27.66479]
[1641656020328,57.86812404,142.49,142.42,6.995]
[1641656020530,30.25734905,142.51,142.42,10.995]
[1641656021228,2.59255905,142.51,142.42,18.01352892]
[1641656021429,2.59255905,142.51,142.43,4.0]
[1641656021627,27.66479,142.53,142.43,4.0]
[1641656021828,27.66479,142.53,142.44,1.754]
[1641656022127,27.66479,142.53,142.43,29.41879]
[1641656022329,27.66479,142.53,142.43,31.66479]
[1641656022627,27.66479,142.53,142.43,29.41879]
[1641656023029,27.66479,142.53,142.43,27.66479]
[1641656023429,34.68578277,142.53,142.41,1.754]
[1641656023630,4.0,142.49,142.41,1.754]
[1641656023828,7.02444507,142.46,142.37,68.4056]
[1641656024028,4.0,142.45,142.33,1.754]
[1641656024229,27.66479,142.45,142.34,31.66479]
[1641656024430,27.66479,142.45,142.34,27.66479]
[1641656025330,31.66479,142.45,142.34,27.66479]
[1641656025632,31.66479,142.45,142.35,2.57900503]
[1641656025831,27.66479,142.45,142.35,6.57900503]
[1641656026030,27.66479,142.45,142.35,14.87900503]
[1641656026232,27.66479,142.47,142.4,27.66479]
[1641656026430,7.02321171,142.49,142.4,34.19479]
[1641656027430,2.37322746,142.48,142.4,34.19479]
[1641656027832,4.0,142.46,142.4,34.19479]
[1641656028031,26.37322746,142.48,142.4,34.19479]
[1641656028232,2.37322746,142.48,142.4,34.19479]
[1641656029432,48.14548849,142.5,142.4,34.19479]
[1641656029732,33.27912456,142.5,142.41,2.70518881]
[1641656029932,4.0,142.47,142.41,2.70518881]
[1641656030233,4.0,142.46,142.41,2.70518881]
[1641656030432,4.0,142.44,142.41,2.70518881]
[1641656030631,5.61581901,142.46,142.41,2.70518881]
[1641656030834,34.4020043,142.5,142.41,9.80718881]
[1641656031032,34.4020043,142.5,142.41,13.80718881]
[1641656031435,34.4020043,142.5,142.42,4.0]
[1641656031633,14.86636393,142.52,142.42,4.0]
[1641656031833,14.86636393,142.52,142.43,1.754]
[1641656032033,14.86636393,142.54,142.43,1.754]
[1641656032233,18.86636393,142.54,142.43,5.754]
[1641656032432,18.86636393,142.54,142.46,27.66479]
[1641656032634,18.86636393,142.54,142.46,35.74879]
[1641656033033,14.86636393,142.54,142.46,39.74879]
[1641656033233,27.66479,142.55,142.46,39.74879]
[1641656034033,14.86636393,142.56,142.46,39.74879]
[1641656034234,27.66479,142.57,142.46,39.74879]
[1641656034434,27.66479,142.57,142.51,27.66479]
[1641656035035,27.66479,142.57,142.47,63.2441]
[1641656035436,31.66479,142.57,142.47,63.2441]
[1641656035636,4.0,142.56,142.46,27.66479]
[1641656036037,9.61242372,142.55,142.46,27.66479]
[1641656036237,4.0,142.53,142.46,27.66479]
[1641656036437,4.0,142.53,142.43,178.83815393]
[1641656036637,4.0,142.53,142.43,163.97179]
[1641656036839,4.0,142.49,142.43,163.97179]
[1641656037037,11.969,142.49,142.43,163.97179]
[1641656037236,4.0,142.46,142.42,14.86636393]
[1641656037438,7.654,142.46,142.41,1.754]
[1641656037636,13.26995439,142.46,142.41,1.754]
[1641656037836,7.654,142.46,142.41,1.754]
[1641656038438,38.40277018,142.48,142.41,1.754]
[1641656038638,38.40277018,142.48,142.39,27.66479]
[1641656039238,34.40277018,142.48,142.39,27.66479]
[1641656039438,15.10382512,142.53,142.41,4.0]
[1641656039639,15.10382512,142.53,142.42,1.754]
[1641656040340,19.10382512,142.53,142.43,2.70030891]
[1641656040543,4.0,142.51,142.43,2.70030891]
[1641656040741,13.98600267,142.51,142.43,2.70030891]
[1641656041042,8.372,142.51,142.43,2.70030891]
[1641656041740,8.372,142.51,142.43,6.70030891]
[1641656041941,8.372,142.51,142.44,1.754]
[1641656042340,36.03679,142.51,142.44,1.754]
[1641656042745,36.03679,142.51,142.45,2.70030891]
[1641656042942,4.0,142.5,142.45,2.70030891]
[1641656043144,4.0,142.48,142.45,2.70030891]
[1641656043442,5.837,142.48,142.41,14.86636393]
[1641656043641,9.837,142.48,142.41,14.86636393]
[1641656043842,5.837,142.48,142.41,14.86636393]
[1641656044042,6.73712133,142.5,142.41,14.86636393]
[1641656044242,27.66479,142.51,142.41,22.83836393]
[1641656044443,27.66479,142.51,142.43,27.66479]
[1641656045443,27.66479,142.51,142.43,40.37379]
[1641656045643,5.61323641,142.53,142.43,40.37379]
[1641656045644,5.61323641,142.53,142.43,42.12779]
[1641656046043,5.61323641,142.53,142.43,38.12779]
[1641656046444,5.61323641,142.53,142.43,42.12779]
[1641656046644,5.61323641,142.53,142.43,38.12779]
[1641656046944,5.61323641,142.53,142.45,14.86636393]
[1641656048147,5.61323641,142.53,142.47,14.86636393]
[1641656048850,4.0,142.52,142.47,14.86636393]
[1641656049050,5.61420376,142.5,142.48,14.86636393]
[1641656049650,5.61418791,142.5,142.48,14.86636393]
[1641656050053,4.0,142.52,142.48,14.86636393]
[1641656050550,27.66479,142.51,142.48,14.86636393]
[1641656050952,31.66479,142.51,142.45,14.86636393]
[1641656051251,24.0,142.49,142.45,14.86636393]
[1641656051451,32.619,142.49,142.45,14.86636393]
[1641656051851,4.0,142.48,142.45,14.86636393]
[1641656052052,4.0,142.46,142.45,14.86636393]
[1641656052251,8.031,142.46,142.42,14.86636393]
[1641656053754,12.031,142.46,142.42,14.86636393]
[1641656053955,5.61608005,142.45,142.42,14.86636393]
[1641656054653,27.66479,142.44,142.42,14.86636393]
[1641656054854,31.66479,142.44,142.42,14.86636393]
[1641656055055,9.61687432,142.43,142.39,39.57309558]
[1641656055254,15.29987432,142.43,142.39,39.57309558]
[1641656055856,15.29987432,142.43,142.37,55.07633675]
[1641656056256,11.29987432,142.43,142.37,55.07633675]
[1641656056556,5.61687432,142.43,142.37,55.07633675]
[1641656056756,5.61687432,142.43,142.35,67.23788558]
[1641656056956,5.61565468,142.46,142.35,67.23788558]
[1641656057156,5.61565468,142.46,142.35,76.42588558]
[1641656057359,5.61565468,142.46,142.35,80.42588558]
[1641656057860,5.61565468,142.46,142.37,39.57309558]
[1641656058759,5.61565468,142.46,142.38,39.57309558]
[1641656058959,5.61565468,142.46,142.38,44.91209558]
[1641656061959,5.61632828,142.45,142.38,39.57309558]
[1641656062160,5.61702759,142.43,142.38,39.57309558]
[1641656062360,5.61702759,142.43,142.37,39.57309558]
[1641656062560,5.6178012,142.41,142.37,39.57309558]
[1641656062763,13.6488012,142.41,142.37,39.57309558]
[1641656063163,4.0,142.4,142.37,39.57309558]
[1641656063364,4.0,142.4,142.35,55.32958]
[1641656063968,33.6488012,142.41,142.35,55.32958]
[1641656065072,37.6488012,142.41,142.35,55.32958]
[1641656065470,33.6488012,142.41,142.35,55.32958]
[1641656066571,13.6488012,142.41,142.35,55.32958]
[1641656066770,5.6178012,142.41,142.35,55.32958]
[1641656070275,5.6178012,142.41,142.35,61.89258]
[1641656070474,27.66479,142.42,142.35,61.89258]
[1641656070676,27.66479,142.42,142.36,1.754]
[1641656070874,27.66479,142.42,142.35,63.64658]
[1641656071275,27.66479,142.42,142.37,39.57309558]
[1641656073178,27.66479,142.42,142.36,54.65519376]
[1641656074080,27.66479,142.42,142.35,94.90267558]
[1641656074279,5.599,142.43,142.35,94.90267558]
[1641656075480,5.61657268,142.44,142.37,39.57309558]
[1641656076480,9.61657268,142.44,142.37,39.57309558]
[1641656076682,5.61754884,142.42,142.37,39.57309558]
[1641656076882,13.21354884,142.42,142.37,39.57309558]
[1641656077182,5.61759024,142.41,142.37,39.57309558]
[1641656077382,5.61759024,142.41,142.35,55.32958]
[1641656077982,35.26079,142.42,142.35,55.32958]
[1641656078885,35.26079,142.42,142.35,94.90267558]
[1641656079785,35.26079,142.42,142.41,4.96912728]
[1641656080887,35.26079,142.42,142.35,158.48237558]
[1641656081088,5.61792676,142.41,142.35,39.57309558]
[1641656081688,5.61792676,142.41,142.4,4.97152148]
[1641656082288,9.61792676,142.41,142.4,4.97152148]
[1641656082588,0.64713904,142.39,142.34,69.9773]
[1641656082789,7.054,142.39,142.33,39.57309558]
[1641656082991,34.71879,142.39,142.33,39.57309558]
[1641656083191,38.71879,142.39,142.33,39.57309558]
[1641656083592,34.71879,142.39,142.33,39.57309558]
[1641656083794,34.71879,142.39,142.32,57.07881146]
[1641656083993,27.66479,142.39,142.32,61.07881146]
[1641656084193,10.74010735,142.44,142.32,64.10251646]
[1641656084395,10.74010735,142.44,142.32,72.22851646]
[1641656084793,10.74010735,142.44,142.36,39.57309558]
[1641656084992,34.40489735,142.44,142.36,46.44409558]
[1641656085795,34.40489735,142.44,142.4,14.90908719]
[1641656086494,34.40489735,142.44,142.37,42.08507565]
[1641656086495,7.02765382,142.41,142.37,42.08507565]
[1641656086695,7.02765382,142.41,142.35,54.56683139]
[1641656086696,4.0,142.4,142.35,54.56683139]
[1641656087095,27.66479,142.37,142.35,54.56683139]
[1641656087299,33.26179,142.37,142.35,54.56683139]
[1641656087700,33.26179,142.37,142.35,39.57309558]
[1641656087899,33.26179,142.37,142.31,132.5249]
[1641656088098,33.26179,142.37,142.31,65.3987]
[1641656089402,5.62009239,142.35,142.31,65.3987]
[1641656089602,33.26179,142.37,142.29,66.6329]
[1641656091406,5.597,142.37,142.29,70.6329]
[1641656091605,27.66479,142.39,142.29,70.6329]
[1641656091606,27.66479,142.39,142.3,1.756]
[1641656091906,6.74066432,142.42,142.31,4.0]
[1641656092105,6.74066432,142.42,142.32,1.756]
[1641656092605,24.0,142.41,142.32,1.756]
[1641656092805,12.97566432,142.42,142.31,41.32909558]
[1641656093008,12.97566432,142.42,142.31,39.57309558]
[1641656093205,27.66479,142.39,142.31,39.57309558]
[1641656093807,27.66479,142.39,142.3,59.90046536]
[1641656094207,27.66479,142.41,142.31,4.0]
[1641656094409,27.66479,142.41,142.32,1.756]
[1641656095207,27.66479,142.41,142.3,59.90046536]
[1641656095408,35.03179,142.41,142.31,39.57309558]
[1641656095808,27.66479,142.43,142.31,43.57309558]
[1641656096009,27.66479,142.43,142.32,1.754]
[1641656096210,27.66479,142.43,142.32,50.78609558]
[1641656097213,27.66479,142.43,142.36,27.66479]
[1641656099013,20.0,142.46,142.36,27.66479]
[1641656099214,35.75089807,142.47,142.37,4.0]
[1641656099815,35.75089807,142.47,142.36,36.45979]
[1641656100015,35.75089807,142.47,142.37,1.754]
[1641656100215,35.75089807,142.47,142.37,5.754]
[1641656100417,35.75089807,142.47,142.37,1.754]
[1641656101416,5.61626051,142.45,142.36,36.45979]
[1641656101615,5.61626051,142.45,142.36,27.66479]
[1641656102320,12.39326051,142.45,142.36,27.66479]
[1641656102523,12.39326051,142.45,142.37,2.37469905]
[1641656103720,5.61626051,142.45,142.36,9.11569905]
[1641656105228,5.61626051,142.45,142.37,2.37469905]
[1641656105727,27.66479,142.47,142.37,6.37469905]
[1641656105926,27.66479,142.47,142.38,1.754]
[1641656106727,27.66479,142.47,142.4,4.0]
[1641656106926,5.61382017,142.51,142.43,4.0]
[1641656107127,5.61382017,142.51,142.43,7.603]
[1641656108330,27.66479,142.52,142.44,2.37469905]
[1641656109131,27.66479,142.52,142.44,6.37469905]
[1641656109331,27.66479,142.54,142.44,2.37469905]
[1641656109731,27.66479,142.54,142.45,27.66479]
[1641656109935,27.66479,142.56,142.46,1.754]
[1641656110137,27.66479,142.56,142.46,8.918]
[1641656110335,27.66479,142.56,142.46,7.164]
[1641656110535,27.66479,142.56,142.46,11.164]
[1641656110935,27.66479,142.56,142.47,4.0]
[1641656111135,27.66479,142.56,142.47,5.754]
[1641656111335,12.3427479,142.6,142.48,4.0]
[1641656111536,12.3427479,142.6,142.52,4.0]
[1641656111835,37.357584,142.63,142.56,27.66479]
[1641656112036,67.23788558,142.65,142.56,36.42579]
[1641656112636,67.23788558,142.65,142.57,4.0]
[1641656112838,39.57309558,142.65,142.57,5.752]
[1641656113038,2.58017269,142.64,142.62,4.0]
[1641656113239,39.57309558,142.69,142.59,3.39968201]
[1641656113439,39.57309558,142.69,142.65,3.39968201]
[1641656113639,28.26510799,142.73,142.65,39.29447201]
[1641656113839,28.26510799,142.73,142.66,1.752]
[1641656114040,28.26510799,142.73,142.65,37.64479]
[1641656114240,44.99169971,142.78,142.69,3.39968201]
[1641656114439,21.86812404,142.82,142.77,3.39968201]
[1641656114639,21.86812404,142.82,142.8,3.39968201]
[1641656114839,21.86812404,142.82,142.8,9.41068201]
[1641656115038,21.86812404,142.82,142.8,6.011]
[1641656115240,96.42802296,142.86,142.8,6.011]
[1641656115440,0.60031799,142.87,142.8,6.011]
[1641656115639,0.60031799,142.87,142.82,27.66479]
[1641656116041,34.66734593,142.91,142.82,27.66479]
[1641656116242,0.60031799,142.88,142.82,27.66479]
[1641656117053,4.0,142.9,142.82,27.66479]
[1641656117244,7.00402732,142.88,142.76,1.749]
[1641656117442,11.00599012,142.84,142.73,64.1983]
[1641656117644,27.66479,142.82,142.73,91.86309]
[1641656117845,34.67078012,142.84,142.73,91.86309]
[1641656118047,0.60031799,142.82,142.73,91.86309]
[1641656118247,0.60031799,142.81,142.73,91.86309]
[1641656118546,0.60031799,142.81,142.73,95.26277201]
[1641656118747,0.60031799,142.83,142.73,95.26277201]
[1641656118947,7.00599012,142.84,142.73,95.26277201]
[1641656119347,0.60031799,142.81,142.73,91.86309]
[1641656119747,7.00599012,142.84,142.73,91.86309]
[1641656119748,34.67078012,142.84,142.73,91.86309]
[1641656119948,0.60031799,142.81,142.73,91.86309]
[1641656120147,0.60031799,142.81,142.73,93.61309]
[1641656120350,34.67078012,142.84,142.73,93.61309]
[1641656121049,0.60031799,142.81,142.73,93.61309]
[1641656121249,38.67078012,142.84,142.73,91.86309]
[1641656121651,0.60031799,142.77,142.73,91.86309]
[1641656121950,0.60031799,142.76,142.73,91.86309]
[1641656122150,6.947,142.76,142.73,27.66479]
[1641656122953,0.60031799,142.74,142.71,27.66479]
[1641656123252,7.54731799,142.76,142.71,27.66479]
[1641656123450,6.947,142.76,142.71,27.66479]
[1641656124651,0.60031799,142.78,142.71,27.66479]
[1641656125453,7.00795403,142.8,142.71,31.06447201]
[1641656125952,0.60031799,142.79,142.71,27.66479]
[1641656126154,7.00795403,142.8,142.71,27.66479]
[1641656126553,0.60031799,142.78,142.71,27.66479]
[1641656127857,4.0,142.78,142.71,27.66479]
[1641656128059,0.60031799,142.73,142.71,27.66479]
[1641656128257,6.985,142.73,142.71,27.66479]
[1641656129258,0.60031799,142.76,142.71,27.66479]
[1641656129660,0.60031799,142.79,142.73,3.39968201]
[1641656129860,13.72793193,142.83,142.77,27.66479]
[1641656130059,13.72793193,142.83,142.77,33.56279]
[1641656130662,6.72169638,142.83,142.77,33.56279]
[1641656131460,6.71942492,142.87,142.77,33.56279]
[1641656131660,6.71942492,142.87,142.77,35.31279]
[1641656131861,0.60031799,142.85,142.77,35.31279]
[1641656132061,0.60031799,142.85,142.81,27.66479]
[1641656133962,6.71942492,142.87,142.81,27.66479]
[1641656134162,0.60031799,142.84,142.81,27.66479]
[1641656134763,0.60031799,142.85,142.81,27.66479]
[1641656136468,6.71942492,142.87,142.81,27.66479]
[1641656136669,0.60031799,142.86,142.81,27.66479]
[1641656136868,34.66808155,142.89,142.81,27.66479]
[1641656137068,0.60031799,142.86,142.81,27.66479]
[1641656139269,0.60031799,142.86,142.78,1.75]
[1641656139270,0.60031799,142.85,142.78,1.75]
[1641656139670,4.0,142.87,142.78,1.75]
[1641656139870,0.60031799,142.82,142.78,1.75]
[1641656140070,0.60031799,142.82,142.77,27.66479]
[1641656140275,5.6003689,142.85,142.77,27.66479]
[1641656140471,0.60031799,142.84,142.77,27.66479]
[1641656140872,6.20068689,142.85,142.77,27.66479]
[1641656141271,0.60031799,142.85,142.77,27.66479]
[1641656141771,58.891814,142.89,142.77,27.66479]
[1641656141971,54.891814,142.89,142.77,27.66479]
[1641656142372,0.60031799,142.87,142.77,31.06447201]
[1641656142573,0.60031799,142.87,142.78,1.75]
[1641656143172,0.60031799,142.86,142.78,1.75]
[1641656143576,0.60031799,142.88,142.8,3.39968201]
[1641656143773,0.60031799,142.88,142.81,1.75]
[1641656144174,0.60031799,142.88,142.82,27.66479]
[1641656144373,4.93369757,142.88,142.82,27.66479]
[1641656144574,4.93369757,142.88,142.84,3.39968201]
[1641656144875,4.93369757,142.88,142.84,6.582]
[1641656145173,27.66479,142.89,142.84,6.582]
[1641656146076,32.59848757,142.89,142.83,1.749]
[1641656146274,32.59848757,142.89,142.82,29.41379]
[1641656146474,0.60031799,142.87,142.82,29.41379]
[1641656146874,32.59848757,142.89,142.82,29.41379]
[1641656147075,32.59848757,142.89,142.82,27.66479]
[1641656147374,0.60031799,142.88,142.82,27.66479]
[1641656147575,32.59848757,142.89,142.82,27.66479]
[1641656148075,33.19880556,142.89,142.82,27.66479]
[1641656148476,0.60031799,142.88,142.82,27.66479]
[1641656148678,0.60031799,142.87,142.82,27.66479]
[1641656148876,6.778,142.88,142.82,27.66479]
[1641656149876,11.71169757,142.88,142.82,27.66479]
[1641656150577,6.778,142.88,142.82,27.66479]
[1641656151478,4.93369757,142.88,142.82,27.66479]
[1641656152282,5.53401556,142.89,142.87,27.66479]
[1641656152579,4.93369757,142.89,142.87,27.66479]
[1641656152780,5.53401556,142.89,142.87,27.66479]
[1641656152981,4.93369757,142.89,142.87,27.66479]
[1641656157186,4.93369757,142.88,142.87,27.66479]
[1641656157887,4.93369757,142.89,142.87,27.66479]
[1641656158990,4.93369757,142.88,142.87,27.66479]
[1641656163289,4.93369757,142.88,142.84,4.93369757]
[1641656163489,0.60031799,142.85,142.84,4.93369757]
[1641656164291,0.60031799,142.85,142.82,4.93369757]
[1641656164789,4.93369757,142.86,142.82,4.93369757]
[1641656164991,0.60031799,142.85,142.82,4.93369757]
[1641656166794,0.60031799,142.85,142.82,8.09863679]
[1641656168398,4.93369757,142.86,142.82,8.09863679]
[1641656168599,4.93369757,142.85,142.82,8.09863679]
[1641656168798,0.60031799,142.83,142.82,8.09863679]
[1641656169801,4.93369757,142.85,142.82,8.09863679]
[1641656170003,5.53401556,142.85,142.82,8.09863679]
[1641656170401,4.93369757,142.84,142.8,8.09863679]
[1641656170703,9.757e-05,142.84,142.83,27.66479]
[1641656170902,14.62481454,142.87,142.83,27.66479]
[1641656172103,0.60031799,142.88,142.84,3.16493922]
[1641656172401,19.89812749,142.87,142.84,3.16493922]
[1641656172804,19.89812749,142.87,142.86,27.66479]
[1641656174104,19.89812749,142.87,142.83,27.66479]
[1641656175609,19.89812749,142.87,142.84,3.16908915]
[1641656176408,0.60031799,142.86,142.84,3.16908915]
[1641656176608,0.60031799,142.85,142.84,3.16908915]
[1641656176810,7.20331799,142.85,142.84,3.16908915]
[1641656177011,7.20331799,142.85,142.84,0.58891646]
[1641656177012,11.20331799,142.85,142.84,0.58891646]
[1641656177209,31.10144548,142.85,142.84,0.58891646]
[1641656177409,27.10144548,142.85,142.84,0.58891646]
[1641656178411,27.10144548,142.85,142.81,14.62481454]
[1641656178611,0.60031799,142.84,142.81,14.62481454]
[1641656178812,0.60031799,142.84,142.78,82.52691454]
[1641656179013,20.49844548,142.84,142.8,27.66479]
[1641656179511,0.60031799,142.84,142.8,27.66479]
[1641656179912,0.60031799,142.84,142.8,42.28960454]
[1641656180714,20.50262111,142.83,142.8,42.28960454]
[1641656180918,20.50262111,142.83,142.8,14.62481454]
[1641656181314,19.90230312,142.82,142.8,14.62481454]
[1641656181714,19.90230312,142.82,142.79,14.62481454]
[1641656182116,20.50262111,142.82,142.79,14.62481454]
[1641656182919,20.50262111,142.82,142.78,14.62481454]
[1641656183116,0.60031799,142.82,142.78,42.28960454]
[1641656183517,17.86249464,142.85,142.78,42.28960454]
[1641656183717,0.60031799,142.79,142.77,82.51821454]
[1641656183918,0.60031799,142.79,142.77,14.62481454]